fUSD/lending_fUSD_20240414
["ID","MTS","AMOUNT","RATE_DAILY","PERIOD"]
[322563186,1713065444573,-7596.12568265,0.000265,2]
[322563187,1713065444590,-354.147882,0.000265,2]
[322563188,1713065444611,-1030.58595811,0.000265,2]
[322563189,1713065444683,-34735.99909593,0.000265,2]
[322563190,1713065444695,-1915.2572749,0.000265,2]
[322563191,1713065444706,-20979.05894916,0.000265,2]
[322563192,1713065444718,-1015.47670482,0.000265,2]
[322563193,1713065444730,-8532.66152,0.000265,2]
[322563194,1713065444818,-343.60771448,0.000265,2]
[322563195,1713065444837,-11501.72114593,0.000265,2]
[322563196,1713065444857,-1464.75577093,0.000265,2]
[322563197,1713065444869,-3256.11846054,0.000265,2]
[322563198,1713065444881,-881.90822156,0.000265,2]
[322563199,1713065444897,-23185.83123834,0.000265,2]
[322563200,1713065444907,-1977.70461457,0.00026529,28]
[322563201,1713065444917,-349.74,0.00026545,2]
[322563202,1713065444927,-521.03,0.00026545,2]
[322563203,1713065444937,-521.03,0.00026545,2]
[322563204,1713065444947,-521.03,0.00026545,2]
[322563205,1713065444957,-669.78,0.00026545,2]
[322563206,1713065444966,-349.74,0.00026545,2]
[322563207,1713065444976,-187.77,0.00026545,2]
[322563208,1713065444985,-349.74,0.00026545,2]
[322563209,1713065444995,-349.74,0.00026545,2]
[322563210,1713065445005,-521.03,0.00026545,2]
[322563211,1713065445014,-349.74,0.00026545,2]
[322563212,1713065445024,-150.0,0.00026545,2]
[322563213,1713065445033,-521.03,0.00026545,2]
[322563214,1713065445043,-349.74,0.00026545,2]
[322563215,1713065445052,-521.03,0.00026545,2]
[322563216,1713065445062,-150.0,0.00026545,2]
[322563217,1713065445071,-349.74,0.00026545,2]
[322563218,1713065445080,-521.03,0.00026545,2]
[322563219,1713065445090,-521.03,0.00026545,2]
[322563220,1713065445099,-150.0,0.00026545,2]
[322563221,1713065445109,-349.74,0.00026545,2]
[322563222,1713065445118,-521.03,0.00026545,2]
[322563223,1713065445128,-162.41,0.00026545,2]
[322563224,1713065445137,-521.03,0.00026545,2]
[322563225,1713065445149,-349.74,0.00026545,2]
[322563226,1713065445158,-162.41,0.00026545,2]
[322563227,1713065445167,-306.57,0.00026545,2]
[322563228,1713065445176,-162.41,0.00026545,2]
[322563229,1713065445186,-349.74,0.00026545,2]
[322563230,1713065445196,-521.03,0.00026545,2]
[322563231,1713065445205,-150.0,0.00026545,2]
[322563232,1713065445215,-162.41,0.00026545,2]
[322563233,1713065445224,-162.41,0.00026545,2]
[322563234,1713065445234,-521.03,0.00026545,2]
[322563235,1713065445243,-150.0,0.00026545,2]
[322563236,1713065445253,-349.74,0.00026545,2]
[322563237,1713065445262,-150.0,0.00026545,2]
[322563238,1713065445272,-1029.98,0.00026545,2]
[322563239,1713065445282,-542.87,0.00026545,2]
[322563240,1713065445291,-349.74,0.00026545,2]
[322563241,1713065445301,-150.0,0.00026545,2]
[322563242,1713065445311,-521.03,0.00026545,2]
[322563243,1713065445321,-150.0,0.00026545,2]
[322563244,1713065445331,-891.98,0.00026545,2]
[322563245,1713065445341,-349.74,0.00026545,2]
[322563246,1713065445351,-196.285096,0.00026849,2]
[322563247,1713065445361,-159.57,0.00026938,2]
[322563248,1713065445370,-188.52354011,0.00027,4]
[322563249,1713065445380,-175379.35438218,0.00027,2]
[322563250,1713065445389,-10962.7828055,0.00027,2]
[322563251,1713065445402,-89809.94770328,0.00027,2]
[322563252,1713065445412,-650.0,0.00027,3]
[322563253,1713065445422,-3427.77,0.00027123,2]
[322563254,1713065445433,-11028.91,0.00027123,2]
[322563255,1713065445442,-454.232983,0.000272,2]
[322563256,1713065445452,-681.349475,0.000272,2]
[322563257,1713065445461,-908.465966,0.000272,2]
[322563258,1713065445471,-1135.582458,0.000272,2]
[322563259,1713065445481,-1589.815441,0.000272,2]
[322563260,1713065445490,-2712.358812,0.000272,2]
[322563261,1713065445500,-4068.538218,0.000272,2]
[322563262,1713065445509,-5424.717624,0.000272,2]
[322563263,1713065445519,-6780.89703,0.000272,2]
[322563264,1713065445528,-9493.255842,0.000272,2]
[322563265,1713065445538,-1446.926359,0.000272,2]
[322563266,1713065445547,-2170.389539,0.000272,2]
[322563267,1713065445557,-2893.852719,0.000272,2]
[322563268,1713065445566,-3617.315899,0.000272,2]
[322563269,1713065445577,-5064.242258,0.000272,2]
[322563270,1713065445586,-279.49,0.00027335,2]
[322563271,1713065445596,-150.0,0.00027367,2]
[322563272,1713065445605,-150.0,0.00027367,2]
[322563273,1713065445615,-150.0,0.00027367,2]
[322563274,1713065445624,-150.0,0.00027367,2]
[322563275,1713065445633,-150.0,0.00027367,2]
[322563276,1713065445644,-150.0,0.00027367,2]
[322563277,1713065445653,-150.0,0.00027367,2]
[322563278,1713065445663,-150.0,0.00027367,2]
[322563279,1713065445672,-150.0,0.00027367,2]
[322563280,1713065445681,-150.0,0.00027367,2]
[322563281,1713065445690,-150.0,0.00027367,2]
[322563282,1713065445700,-150.0,0.00027367,2]
[322563283,1713065445709,-150.0,0.00027367,2]
[322563284,1713065445719,-154.24,0.00027367,2]
[322563285,1713065445728,-150.0,0.00027367,2]
[322563286,1713065445738,-150.0,0.00027367,2]
[322563287,1713065445747,-150.0,0.00027367,2]
[322563288,1713065445758,-150.0,0.00027367,2]
[322563289,1713065445767,-314.37,0.00027367,2]
[322563290,1713065445777,-614.69645896,0.00027397,2]
[322563291,1713065445786,-151.13,0.00027397,2]
[322563292,1713065445796,-326.82,0.00027397,2]
[322563293,1713065445805,-172.96,0.00027397,2]
[322563294,1713065445815,-154.96,0.00027397,2]
[322563295,1713065445825,-151.15,0.00027397,2]
[322563296,1713065445838,-150.0,0.000274,2]
[322563297,1713065445847,-4267.52056931,0.000274,2]
[322563298,1713065445857,-1295.94,0.000274,2]
[322563299,1713065445866,-1295.94,0.000274,2]
[322563300,1713065445877,-1295.94,0.000274,2]
[322563301,1713065445887,-1295.94,0.000274,2]
[322563302,1713065445898,-1295.94,0.000274,2]
[322563303,1713065445909,-167.041411,0.00027498,8]
[322563304,1713065445920,-188.23147741,0.000275,2]
[322563305,1713065445929,-1487.2,0.00027514,2]
[322563306,1713065445939,-196.285096,0.00027671,14]
[322563307,1713065445948,-152.0,0.00027753,3]
[322563308,1713065445958,-159.57,0.000278,2]
[322563309,1713065445967,-1125.16,0.000278,2]
[322563310,1713065445977,-908.62,0.000278,2]
[322563311,1713065445986,-363.63854736,0.00027874,2]
[322563312,1713065445996,-73338.24224966,0.000279,5]
[322563313,1713065446006,-416.91,0.0002794,2]
[322563314,1713065446015,-151.63819461,0.00027941,2]
[322563315,1713065446024,-167.041411,0.00027998,9]
[322563316,1713065446034,-20183.79290959,0.00028,2]
[322563317,1713065446043,-981.98056153,0.00028,2]
[322563318,1713065446052,-1039.89549694,0.00028,2]
[322563319,1713065446062,-200.43660324,0.00028,2]
[322563320,1713065446071,-150.0,0.00028005,2]
[322563321,1713065446081,-167.041411,0.00028098,10]
[322563322,1713065446090,-22529.873021,0.000281,15]
[322563323,1713065446101,-152.0,0.00028111,4]
[322563324,1713065446111,-150.0,0.00028188,2]
[322563325,1713065446121,-167.041411,0.00028198,11]
[322563326,1713065446130,-1000.0,0.00028198,2]
[322563327,1713065446139,-167.0,0.00028367,2]
[322563328,1713065446150,-150.0,0.000284,2]
[322563329,1713065446159,-152.0,0.00028469,5]
[322563330,1713065446168,-196.285096,0.00028493,14]
[322563331,1713065446177,-157.041411,0.00028498,8]
[322563332,1713065446187,-157.041411,0.00028498,7]
[322563333,1713065446196,-150.0,0.00028586,2]
[322563334,1713065446209,-150.0,0.00028586,2]
[322563335,1713065446218,-150.0,0.00028586,2]
[322563336,1713065446228,-150.0,0.00028586,2]
[322563337,1713065446238,-150.0,0.00028586,2]
[322563338,1713065446247,-150.0,0.00028586,2]
[322563339,1713065446256,-162.41,0.00028586,2]
[322563340,1713065446266,-150.0,0.00028586,2]
[322563341,1713065446276,-162.41,0.00028586,2]
[322563342,1713065446286,-162.41,0.00028586,2]
[322563343,1713065446295,-150.0,0.00028586,2]
[322563344,1713065446305,-162.41,0.00028586,2]
[322563345,1713065446315,-150.0,0.00028586,2]
[322563346,1713065446402,-157.23,0.00028586,2]
[322563347,1713065446412,-150.0,0.00028586,2]
[322563348,1713065446421,-964.77,0.00028586,2]
[322563349,1713065446432,-151.7,0.00028586,2]
[322563350,1713065446441,-159.57,0.00028661,2]
[322563351,1713065446451,-151.59,0.00028714,2]
[322563352,1713065446460,-150.0,0.00028714,2]
[322563353,1713065446469,-150.0,0.00028714,2]
[322563354,1713065446479,-162.41,0.00028714,2]
[322563355,1713065446488,-162.41,0.00028714,2]
[322563356,1713065446498,-162.41,0.00028714,2]
[322563357,1713065446507,-349.74,0.00028714,2]
[322563358,1713065446517,-300.0,0.00028714,2]
[322563359,1713065446526,-349.74,0.00028714,2]
[322563360,1713065446536,-521.03,0.00028714,2]
[322563361,1713065446545,-521.03,0.00028714,2]
[322563362,1713065446555,-349.74,0.00028714,2]
[322563363,1713065446565,-521.03,0.00028714,2]
[322563364,1713065446574,-349.74,0.00028714,2]
[322563365,1713065446583,-152.0,0.00028827,6]
[322563366,1713065446593,-150.0,0.00028941,2]
[322563367,1713065446603,-500000.0,0.00029,2]
[322563368,1713065446612,-561.90793477,0.00029,2]
[322563369,1713065446622,-6748.52184998,0.00029,2]
[322563370,1713065446631,-1294.90297864,0.00029,2]
[322563371,1713065446641,-1000.0,0.00029,2]
[322563372,1713065446653,-500.0,0.00029,2]
[322563373,1713065446661,-500.0,0.00029,2]
[322563374,1713065446670,-500.0,0.00029,2]
[322563375,1713065446679,-500.0,0.00029,2]
[322563376,1713065446688,-500.0,0.00029,2]
[322563377,1713065446698,-500.0,0.00029,2]
[322563378,1713065446707,-500.0,0.00029,2]
[322563379,1713065446716,-500.0,0.00029,2]
[322563380,1713065446725,-500.0,0.00029,2]
[322563381,1713065446734,-500.0,0.00029,2]
[322563382,1713065446743,-500.0,0.00029,2]
[322563383,1713065446752,-500.0,0.00029,2]
[322563384,1713065446761,-500.0,0.00029,2]
[322563385,1713065446770,-500.0,0.00029,2]
[322563386,1713065446779,-500.0,0.00029,2]
[322563387,1713065446787,-500.0,0.00029,2]
[322563388,1713065446796,-500.0,0.00029,2]
[322563389,1713065446805,-500.0,0.00029,2]
[322563390,1713065446815,-500.0,0.00029,2]
[322563391,1713065446824,-513.13,0.00029,2]
[322563392,1713065446838,-500.0,0.00029,2]
[322563393,1713065446848,-500.0,0.00029,2]
[322563394,1713065446857,-500.0,0.00029,2]
[322563395,1713065446867,-500.0,0.00029,2]
[322563396,1713065446878,-500.0,0.00029,2]
[322563397,1713065446888,-500.0,0.00029,2]
[322563398,1713065446900,-500.0,0.00029,2]
[322563399,1713065446909,-500.0,0.00029,2]
[322563400,1713065446918,-500.0,0.00029,2]
[322563401,1713065446927,-500.0,0.00029,2]
[322563402,1713065446936,-500.0,0.00029,2]
[322563403,1713065446946,-566.06,0.00029,2]
[322563404,1713065446956,-500.0,0.00029,2]
[322563405,1713065446965,-500.0,0.00029,2]
[322563406,1713065446975,-500.0,0.00029,2]
[322563407,1713065446985,-500.0,0.00029,2]
[322563408,1713065446995,-500.0,0.00029,2]
[322563409,1713065447004,-500.0,0.00029,2]
[322563410,1713065447014,-500.0,0.00029,2]
[322563412,1713065447023,-500.0,0.00029,2]
[322563414,1713065447032,-500.0,0.00029,2]
[322563416,1713065447041,-500.0,0.00029,2]
[322563418,1713065447050,-500.0,0.00029,2]
[322563420,1713065447059,-500.0,0.00029,2]
[322563421,1713065447068,-500.0,0.00029,2]
[322563423,1713065447078,-500.0,0.00029,2]
[322563425,1713065447087,-500.0,0.00029,2]
[322563428,1713065447097,-500.0,0.00029,2]
[322563429,1713065447106,-500.0,0.00029,2]
[322563430,1713065447115,-500.0,0.00029,2]
[322563431,1713065447124,-500.0,0.00029,2]
[322563432,1713065447133,-500.0,0.00029,2]
[322563433,1713065447142,-500.0,0.00029,2]
[322563434,1713065447153,-500.0,0.00029,2]
[322563435,1713065447161,-500.0,0.00029,2]
[322563436,1713065447171,-500.0,0.00029,2]
[322563438,1713065447181,-500.0,0.00029,2]
[322563440,1713065447191,-500.0,0.00029,2]
[322563442,1713065447200,-500.0,0.00029,2]
[322563444,1713065447209,-500.0,0.00029,2]
[322563446,1713065447218,-500.0,0.00029,2]
[322563448,1713065447227,-500.0,0.00029,2]
[322563450,1713065447236,-500.0,0.00029,2]
[322563452,1713065447246,-500.0,0.00029,2]
[322563454,1713065447255,-500.0,0.00029,2]
[322563456,1713065447264,-500.0,0.00029,2]
[322563458,1713065447274,-500.0,0.00029,2]
[322563460,1713065447283,-500.0,0.00029,2]
[322563462,1713065447293,-500.0,0.00029,2]
[322563464,1713065447302,-500.0,0.00029,2]
[322563465,1713065447312,-500.0,0.00029,2]
[322563468,1713065447322,-514.26,0.00029,2]
[322563469,1713065447333,-500.0,0.00029,2]
[322563472,1713065447343,-500.0,0.00029,2]
[322563473,1713065447353,-329.66,0.00029,2]
[322563476,1713065447364,-500.0,0.00029,2]
[322563477,1713065447377,-500.0,0.00029,2]
[322563479,1713065447387,-500.0,0.00029,2]
[322563481,1713065447397,-500.0,0.00029,2]
[322563484,1713065447407,-424.91,0.00029,2]
[322563485,1713065447417,-700.0,0.00029,3]
[322563488,1713065447427,-151.33,0.00029,2]
[322563490,1713065447437,-151.33,0.00029,2]
[322563491,1713065447446,-151.33,0.00029,2]
[322563493,1713065447456,-151.33,0.00029,2]
[322563496,1713065447466,-151.33,0.00029,2]
[322563497,1713065447475,-151.33,0.00029,2]
[322563499,1713065447488,-151.33,0.00029,2]
[322563502,1713065447498,-151.33,0.00029,2]
[322563503,1713065447507,-151.33,0.00029,2]
[322563506,1713065447517,-151.33,0.00029,2]
[322563508,1713065447527,-151.33,0.00029,2]
[322563510,1713065447537,-151.33,0.00029,2]
[322563512,1713065447546,-151.33,0.00029,2]
[322563514,1713065447555,-151.33,0.00029,2]
[322563516,1713065447565,-151.33,0.00029,2]
[322563517,1713065447574,-151.33,0.00029,2]
[322563520,1713065447584,-151.33,0.00029,2]
[322563522,1713065447594,-151.33,0.00029,2]
[322563523,1713065447603,-151.33,0.00029,2]
[322563525,1713065447615,-151.33,0.00029,2]
[322563528,1713065447626,-151.33,0.00029,2]
[322563529,1713065447636,-151.33,0.00029,2]
[322563532,1713065447647,-151.33,0.00029,2]
[322563534,1713065447657,-151.33,0.00029,2]
[322563535,1713065447667,-151.33,0.00029,2]
[322563537,1713065447678,-151.33,0.00029,2]
[322563539,1713065447688,-151.33,0.00029,2]
[322563541,1713065447699,-151.33,0.00029,2]
[322563543,1713065447709,-151.33,0.00029,2]
[322563546,1713065447722,-151.33,0.00029,2]
[322563547,1713065447733,-151.33,0.00029,2]
[322563550,1713065447743,-418.29,0.0002901,2]
[322563552,1713065447754,-418.29,0.0002901,2]
[322563554,1713065447764,-418.29,0.0002901,2]
[322563556,1713065447776,-418.29,0.0002901,2]
[322563558,1713065447786,-501.58,0.0002901,2]
[322563560,1713065447796,-418.29,0.0002901,2]
[322563562,1713065447808,-418.29,0.0002901,2]
[322563564,1713065447818,-418.29,0.0002901,2]
[322563566,1713065447830,-418.29,0.0002901,2]
[322563568,1713065447843,-418.29,0.0002901,2]
[322563570,1713065447852,-418.29,0.0002901,2]
[322563572,1713065447862,-418.29,0.0002901,2]
[322563574,1713065447872,-418.29,0.0002901,2]
[322563576,1713065447884,-418.29,0.0002901,2]
[322563578,1713065447896,-418.29,0.0002901,2]
[322563580,1713065447906,-418.29,0.0002901,2]
[322563582,1713065447916,-430.67,0.0002901,2]
[322563584,1713065447926,-418.29,0.0002901,2]
[322563586,1713065447936,-418.29,0.0002901,2]
[322563588,1713065447946,-418.29,0.0002901,2]
[322563590,1713065447956,-958.02,0.0002901,2]
[322563592,1713065447966,-1000.0,0.000291,2]
[322563594,1713065447976,-889.0,0.000291,2]
[322563596,1713065447987,-1000.0,0.000291,2]
[322563598,1713065447997,-303.13205082,0.0002912,2]
[322563600,1713065448007,-152.0,0.00029185,7]
[322563602,1713065448017,-157.041411,0.00029198,11]
[322563604,1713065448027,-1000.0,0.000292,2]
[322563606,1713065448038,-150.0,0.0002923,2]
[322563608,1713065448047,-150.0,0.00029239,2]
[322563610,1713065448057,-1000.0,0.000293,2]
[322563613,1713065448067,-150.0,0.00029304,2]
[322563615,1713065448077,-150.0,0.00029333,2]
[322563617,1713065448087,-150.0,0.00029333,2]
[322563619,1713065448096,-150.0,0.00029386,2]
[322563621,1713065448110,-150.0,0.0002939,2]
[322563622,1713065448119,-290.1,0.000294,2]
[322563625,1713065448129,-250000.0,0.000294,2]
[322563627,1713065448139,-1072.76680103,0.000294,2]
[322563629,1713065448149,-150.0,0.00029403,2]
[322563631,1713065448158,-317.85,0.00029408,2]
[322563633,1713065448168,-150.0,0.00029408,2]
[322563634,1713065448178,-150.0,0.00029408,2]
[322563637,1713065448187,-150.0,0.00029408,2]
[322563639,1713065448197,-150.0,0.00029414,2]
[322563641,1713065448206,-150.0,0.00029421,2]
[322563643,1713065448216,-150.0,0.00029437,2]
[322563644,1713065448226,-300.0,0.00029449,2]
[322563647,1713065448236,-150.0,0.0002945,2]
[322563649,1713065448245,-150.0,0.0002945,2]
[322563651,1713065448255,-150.0,0.0002945,2]
[322563653,1713065448265,-1948.0,0.0002945,2]
[322563655,1713065448274,-807.0,0.0002945,2]
[322563657,1713065448283,-280.0,0.0002945,2]
[322563659,1713065448293,-608.0,0.0002945,2]
[322563661,1713065448303,-436.0,0.0002945,2]
[322563663,1713065448313,-3043.0,0.0002945,2]
[322563665,1713065448323,-1472.0,0.0002945,2]
[322563667,1713065448333,-399.0,0.0002945,2]
[322563669,1713065448342,-150.0,0.0002945,2]
[322563671,1713065448352,-1140.0,0.0002945,2]
[322563673,1713065448361,-150.0,0.0002945,2]
[322563675,1713065448371,-2440.0,0.0002945,2]
[322563677,1713065448381,-1637.0,0.0002945,2]
[322563678,1713065448390,-443.0,0.0002945,2]
[322563679,1713065448401,-355.0,0.0002945,2]
[322563680,1713065448410,-214.0,0.0002945,2]
[322563681,1713065448420,-1054.0,0.0002945,2]
[322563682,1713065448430,-5719.0,0.0002945,2]
[322563683,1713065448439,-461.0,0.0002945,2]
[322563684,1713065448448,-4803.0,0.0002945,2]
[322563686,1713065448458,-968.0,0.0002945,2]
[322563688,1713065448468,-2291.0,0.0002945,2]
[322563690,1713065448478,-2466.0,0.0002945,2]
[322563692,1713065448487,-37623.0,0.0002945,2]
[322563694,1713065448497,-1391.0,0.0002945,2]
[322563696,1713065448507,-1315.0,0.0002945,2]
[322563698,1713065448517,-150.0,0.00029469,2]
[322563700,1713065448527,-150.0,0.00029488,2]
[322563702,1713065448536,-150.0,0.00029494,2]
[322563704,1713065448546,-150.0,0.00029496,2]
[322563706,1713065448555,-157.041411,0.00029498,9]
[322563708,1713065448565,-157.041411,0.00029498,8]
[322563710,1713065448575,-442.1097132,0.000295,3]
[322563712,1713065448586,-150.0,0.00029513,2]
[322563714,1713065448597,-159.57,0.00029522,2]
[322563716,1713065448608,-300.0,0.00029527,2]
[322563718,1713065448618,-349.12,0.00029536,2]
[322563720,1713065448629,-152.0,0.00029543,8]
[322563722,1713065448639,-150.0,0.00029565,2]
[322563724,1713065448650,-300.0,0.00029582,2]
[322563726,1713065448659,-150.0,0.00029588,2]
[322563728,1713065448670,-279.49,0.00029599,2]
[322563730,1713065448680,-1125.16,0.000296,2]
[322563733,1713065448691,-908.62,0.000296,2]
[322563735,1713065448701,-150.0,0.00029623,2]
[322563737,1713065448711,-150.0,0.00029639,2]
[322563738,1713065448720,-150.0,0.00029643,2]
[322563741,1713065448730,-150.0,0.00029652,2]
[322563743,1713065448740,-150.0,0.00029654,2]
[322563745,1713065448751,-150.0,0.00029667,2]
[322563747,1713065448760,-150.0,0.00029668,2]
[322563749,1713065448770,-150.0,0.00029712,2]
[322563751,1713065448780,-150.0,0.00029716,2]
[322563753,1713065448791,-150.0,0.00029718,2]
[322563755,1713065448800,-150.0,0.00029719,2]
[322563757,1713065448810,-150.0,0.00029729,2]
[322563759,1713065448821,-150.0,0.00029734,2]
[322563761,1713065448832,-150.0,0.00029735,2]
[322563763,1713065448844,-150.0,0.00029736,2]
[322563765,1713065448854,-150.0,0.00029739,2]
[322563767,1713065448865,-150.0,0.00029741,2]
[322563769,1713065448875,-150.0,0.00029743,2]
[322563771,1713065448886,-150.0,0.00029754,2]
[322563773,1713065448901,-150.0,0.00029756,2]
[322563775,1713065448912,-150.0,0.0002976,2]
[322563777,1713065448922,-150.0,0.00029761,2]
[322563779,1713065448932,-150.0,0.00029761,2]
[322563780,1713065448942,-150.0,0.00029762,2]
[322563781,1713065448952,-150.0,0.00029764,2]
[322563782,1713065448963,-300.0,0.00029764,2]
[322563783,1713065448975,-150.0,0.00029767,2]
[322563784,1713065448986,-301.22821361,0.00029768,2]
[322563785,1713065448996,-150.0,0.0002977,2]
[322563786,1713065449006,-150.0,0.00029771,2]
[322563787,1713065449016,-150.0,0.00029775,2]
[322563788,1713065449026,-150.0,0.00029779,2]
[322563789,1713065449037,-150.0,0.00029779,2]
[322563790,1713065449047,-150.0,0.0002978,2]
[322563791,1713065449057,-150.0,0.0002978,2]
[322563792,1713065449068,-418.43,0.00029782,2]
[322563793,1713065449078,-150.0,0.00029782,2]
[322563794,1713065449088,-150.0,0.00029783,2]
[322563795,1713065449098,-150.0,0.00029785,2]
[322563796,1713065449109,-150.0,0.00029786,2]
[322563797,1713065449121,-150.0,0.00029788,2]
[322563798,1713065449131,-150.0,0.00029789,2]
[322563799,1713065449142,-150.0,0.00029793,2]
[322563800,1713065449155,-150.0,0.00029794,2]
[322563801,1713065449165,-254.94,0.00029795,2]
[322563802,1713065449176,-150.0,0.00029797,2]
[322563803,1713065449186,-150.0,0.00029801,2]
[322563804,1713065449197,-150.0,0.00029808,2]
[322563805,1713065449208,-150.0,0.00029813,2]
[322563806,1713065449218,-150.0,0.00029814,2]
[322563807,1713065449229,-150.0,0.00029819,2]
[322563808,1713065449240,-150.0,0.00029821,2]
[322563809,1713065449251,-150.0,0.00029829,2]
[322563810,1713065449262,-150.0,0.00029834,2]
[322563811,1713065449274,-150.0,0.00029838,2]
[322563812,1713065449285,-150.0,0.00029842,2]
[322563813,1713065449296,-150.0,0.00029842,2]
[322563814,1713065449306,-150.0,0.00029847,2]
[322563815,1713065449318,-241.16667944,0.00029854,2]
[322563816,1713065449329,-150.0,0.00029859,2]
[322563817,1713065449340,-150.0,0.00029861,2]
[322563818,1713065449351,-150.0,0.00029861,2]
[322563819,1713065449361,-150.0,0.00029864,2]
[322563820,1713065449373,-150.0,0.00029869,2]
[322563821,1713065449385,-150.0,0.00029872,2]
[322563822,1713065449395,-150.0,0.00029873,2]
[322563823,1713065449409,-150.0,0.00029875,2]
[322563824,1713065449420,-150.0,0.00029881,2]
[322563825,1713065449431,-150.0,0.00029882,2]
[322563826,1713065449441,-150.0,0.00029886,2]
[322563827,1713065449453,-150.0,0.00029887,2]
[322563828,1713065449463,-150.0,0.00029888,2]
[322563829,1713065449474,-72416.23193675,0.000299,2]
[322563830,1713065449484,-150.0,0.000299,2]
[322563831,1713065449494,-150.0,0.00029901,2]
[322563832,1713065449504,-152.0,0.00029901,9]
[322563833,1713065449515,-150.0,0.00029902,2]
[322563834,1713065449525,-150.0,0.00029912,2]
[322563835,1713065449535,-150.0,0.00029913,2]
[322563836,1713065449545,-150.0,0.00029913,2]
[322563837,1713065449556,-150.0,0.00029914,2]
[322563838,1713065449566,-150.0,0.00029916,2]
[322563839,1713065449577,-150.0,0.00029922,2]
[322563840,1713065449587,-150.0,0.00029941,2]
[322563841,1713065449596,-150.0,0.00029941,2]
[322563842,1713065449606,-150.0,0.00029946,2]
[322563843,1713065449616,-150.0,0.00029946,2]
[322563844,1713065449627,-150.0,0.00029948,2]
[322563845,1713065449637,-150.0,0.00029956,2]
[322563846,1713065449650,-150.0,0.00029958,2]
[322563847,1713065449660,-150.0,0.00029959,2]
[322563848,1713065449670,-150.0,0.00029961,2]
[322563849,1713065449680,-150.0,0.00029962,2]
[322563850,1713065449690,-150.0,0.00029963,2]
[322563851,1713065449700,-150.0,0.00029963,2]
[322563852,1713065449709,-150.0,0.00029964,2]
[322563853,1713065449719,-150.0,0.00029971,2]
[322563854,1713065449730,-150.0,0.00029973,2]
[322563855,1713065449739,-150.0,0.00029973,2]
[322563856,1713065449750,-150.0,0.00029974,2]
[322563857,1713065449760,-150.0,0.00029985,2]
[322563858,1713065449770,-150.0,0.00029987,2]
[322563859,1713065449779,-50754.02650274,0.0002999,2]
[322563860,1713065449789,-150.0,0.00029997,2]
[322563861,1713065449798,-5671.57167742,0.0003,2]
[322563862,1713065449808,-420.73545665,0.0003,2]
[322563863,1713065449818,-18233.41907552,0.0003,7]